[Event "Early-Titled-Tuesday-Blitz-June-18-2024"]
[Site "Chess.com"]
[Date "2024.06.18"]
[Round "7"]
[White "ketster"]
[Black "Mikhail_Bryakin"]
[Result "0-1"]
[WhiteElo "2577"]
[BlackElo "2762"]
[TimeControl "180+1"]
[EndTime "9:20:15 PDT"]
[Termination "Mikhail_Bryakin won by checkmate"]

1. Nf3 {[%clk 0:02:48.6]} 1... Nf6 {[%clk 0:02:59.9]} 2. c4 {[%clk 0:02:48.3]}
2... c5 {[%clk 0:02:59.8]} 3. Nc3 {[%clk 0:02:46.6]} 3... Nc6 {[%clk 0:02:59.6]}
4. g3 {[%clk 0:02:46.4]} 4... g6 {[%clk 0:02:59.6]} 5. Bg2 {[%clk 0:02:44]} 5...
Bg7 {[%clk 0:03:00.2]} 6. d4 {[%clk 0:02:44.3]} 6... cxd4 {[%clk 0:02:59]} 7.
Nxd4 {[%clk 0:02:44.6]} 7... O-O {[%clk 0:02:59.4]} 8. O-O {[%clk 0:02:43]} 8...
Qb6 {[%clk 0:02:55.1]} 9. Ndb5 {[%clk 0:02:36.7]} 9... d6 {[%clk 0:02:49.2]} 10.
Be3 {[%clk 0:02:35]} 10... Qd8 {[%clk 0:02:49.5]} 11. Rc1 {[%clk 0:02:24.7]}
11... Be6 {[%clk 0:02:45.3]} 12. Nd5 {[%clk 0:02:18.8]} 12... a6 {[%clk
0:02:34.8]} 13. Nbc7 {[%clk 0:02:07]} 13... Rc8 {[%clk 0:02:34.9]} 14. Nxe6
{[%clk 0:02:06]} 14... fxe6 {[%clk 0:02:35.3]} 15. Nb6 {[%clk 0:02:03.5]} 15...
Rc7 {[%clk 0:02:31.2]} 16. h3 {[%clk 0:01:58.2]} 16... Nd7 {[%clk 0:02:24.8]}
17. Qd2 {[%clk 0:01:47.6]} 17... e5 {[%clk 0:02:18.5]} 18. Nd5 {[%clk
0:01:32.1]} 18... Rc8 {[%clk 0:02:17]} 19. Bg5 {[%clk 0:01:23.4]} 19... Nf6
{[%clk 0:02:13.5]} 20. e3 {[%clk 0:01:21.4]} 20... h6 {[%clk 0:02:08.6]} 21.
Bxf6 {[%clk 0:01:17.5]} 21... Bxf6 {[%clk 0:02:07.9]} 22. b4 {[%clk 0:01:14.8]}
22... Bg7 {[%clk 0:02:05.7]} 23. b5 {[%clk 0:01:10.4]} 23... Nb8 {[%clk
0:02:03.8]} 24. a4 {[%clk 0:01:01.7]} 24... Nd7 {[%clk 0:02:02.2]} 25. Be4
{[%clk 0:00:57.8]} 25... Kh7 {[%clk 0:01:19.3]} 26. Nc3 {[%clk 0:00:56.6]} 26...
Nc5 {[%clk 0:01:13.8]} 27. Bg2 {[%clk 0:00:52.9]} 27... Nb3 {[%clk 0:01:10.6]}
28. Qc2 {[%clk 0:00:29]} 28... Nxc1 {[%clk 0:01:00.2]} 29. Bxb7 {[%clk 0:00:28]}
29... Rxc4 {[%clk 0:00:56.8]} 30. Rxc1 {[%clk 0:00:27.1]} 30... axb5 {[%clk
0:00:56.7]} 31. axb5 {[%clk 0:00:23.3]} 31... e4 {[%clk 0:00:57.3]} 32. Qb3
{[%clk 0:00:15.7]} 32... Qc7 {[%clk 0:00:49.1]} 33. Bc6 {[%clk 0:00:15.8]} 33...
d5 {[%clk 0:00:40.8]} 34. Ne2 {[%clk 0:00:11.6]} 34... Rxc1+ {[%clk 0:00:32.7]}
35. Nxc1 {[%clk 0:00:12.5]} 35... d4 {[%clk 0:00:26.3]} 36. Qe6 {[%clk
0:00:03.1]} 36... dxe3 {[%clk 0:00:23.5]} 37. Qxe4 {[%clk 0:00:01.6]} 37...
exf2+ {[%clk 0:00:22.8]} 38. Kf1 {[%clk 0:00:01.9]} 38... Qxg3 {[%clk 0:00:23]}
39. Ne2 {[%clk 0:00:01.7]} 39... Qxh3+ {[%clk 0:00:22.7]} 40. Qg2 {[%clk
0:00:02.3]} 40... Qd3 {[%clk 0:00:22]} 41. Be4 {[%clk 0:00:01.8]} 41... Qd1#
{[%clk 0:00:22.3]} 0-1

[Event "Early-Titled-Tuesday-Blitz-June-18-2024"]
[Site "Chess.com"]
[Date "2024.06.18"]
[Round "7"]
[White "Brown_Bear_MGL"]
[Black "GMG"]
[Result "1-0"]
[WhiteElo "2515"]
[BlackElo "2697"]
[TimeControl "180+1"]
[EndTime "9:20:15 PDT"]
[Termination "Brown_Bear_MGL won on time"]

1. b3 {[%clk 0:03:00.9]} 1... c5 {[%clk 0:02:55.1]} 2. Bb2 {[%clk 0:02:59.6]}
2... d6 {[%clk 0:02:55.7]} 3. e3 {[%clk 0:02:55.4]} 3... Nc6 {[%clk 0:02:52.9]}
4. Nf3 {[%clk 0:02:53]} 4... e5 {[%clk 0:02:51.8]} 5. d4 {[%clk 0:02:42.5]} 5...
e4 {[%clk 0:02:51.6]} 6. Nfd2 {[%clk 0:02:41.3]} 6... cxd4 {[%clk 0:02:40.5]} 7.
Nxe4 {[%clk 0:02:32]} 7... dxe3 {[%clk 0:02:39.8]} 8. Bb5 {[%clk 0:02:10.2]}
8... exf2+ {[%clk 0:02:36.7]} 9. Nxf2 {[%clk 0:02:07.3]} 9... Qe7+ {[%clk
0:02:33]} 10. Kf1 {[%clk 0:01:57]} 10... Nh6 {[%clk 0:02:24.5]} 11. Nc3 {[%clk
0:01:51.4]} 11... Be6 {[%clk 0:02:11.8]} 12. Qf3 {[%clk 0:01:49.2]} 12... Qd7
{[%clk 0:02:07.3]} 13. Rd1 {[%clk 0:01:14.8]} 13... a6 {[%clk 0:02:03.6]} 14.
Bxc6 {[%clk 0:01:08.1]} 14... bxc6 {[%clk 0:01:59.5]} 15. Na4 {[%clk 0:00:56]}
15... Rd8 {[%clk 0:01:43.1]} 16. Nc5 {[%clk 0:00:53.9]} 16... Qc8 {[%clk
0:01:37.1]} 17. Nxe6 {[%clk 0:00:51.2]} 17... fxe6 {[%clk 0:01:38]} 18. Qh5+
{[%clk 0:00:46]} 18... Nf7 {[%clk 0:01:37.3]} 19. Ne4 {[%clk 0:00:41.2]} 19...
e5 {[%clk 0:01:33.5]} 20. Ke2 {[%clk 0:00:36.5]} 20... Qe6 {[%clk 0:01:27.8]}
21. Rhf1 {[%clk 0:00:35.1]} 21... Be7 {[%clk 0:01:26.6]} 22. Ng3 {[%clk
0:00:23]} 22... O-O {[%clk 0:01:16.9]} 23. Rd3 {[%clk 0:00:20.6]} 23... g6
{[%clk 0:01:11]} 24. Qf3 {[%clk 0:00:16.8]} 24... d5 {[%clk 0:01:10.5]} 25. Qe3
{[%clk 0:00:15.9]} 25... Qg4+ {[%clk 0:01:02.5]} 26. Ke1 {[%clk 0:00:14.1]}
26... Bg5 {[%clk 0:00:55.4]} 27. Qe2 {[%clk 0:00:13.9]} 27... Qh4 {[%clk
0:00:53.7]} 28. Rdf3 {[%clk 0:00:12.9]} 28... Rde8 {[%clk 0:00:50.6]} 29. Kd1
{[%clk 0:00:08.9]} 29... e4 {[%clk 0:00:44.3]} 30. R3f2 {[%clk 0:00:07.5]} 30...
e3 {[%clk 0:00:24.7]} 31. Rf3 {[%clk 0:00:06.2]} 31... c5 {[%clk 0:00:18.4]} 32.
Kc1 {[%clk 0:00:06.5]} 32... d4 {[%clk 0:00:17.4]} 33. Kb1 {[%clk 0:00:06.8]}
33... a5 {[%clk 0:00:12.1]} 34. Qc4 {[%clk 0:00:06.5]} 34... Re7 {[%clk
0:00:11.3]} 35. Qxc5 {[%clk 0:00:06.4]} 35... Qxh2 {[%clk 0:00:09.3]} 36. Qxd4
{[%clk 0:00:05.2]} 1-0

[Event "Early-Titled-Tuesday-Blitz-June-18-2024"]
[Site "Chess.com"]
[Date "2024.06.18"]
[Round "7"]
[White "aot317"]
[Black "Witik"]
[Result "0-1"]
[WhiteElo "2526"]
[BlackElo "2802"]
[TimeControl "180+1"]
[EndTime "9:20:16 PDT"]
[Termination "Witik won on time"]

1. d4 {[%clk 0:03:00.9]} 1... Nf6 {[%clk 0:02:57.4]} 2. c4 {[%clk 0:03:00.2]}
2... g6 {[%clk 0:02:56.9]} 3. Nf3 {[%clk 0:03:00.3]} 3... Bg7 {[%clk 0:02:56.6]}
4. g3 {[%clk 0:03:00.9]} 4... c6 {[%clk 0:02:56.6]} 5. Bg2 {[%clk 0:03:01.4]}
5... O-O {[%clk 0:02:56.9]} 6. O-O {[%clk 0:03:02.1]} 6... d5 {[%clk 0:02:57.6]}
7. Nc3 {[%clk 0:03:02.3]} 7... dxc4 {[%clk 0:02:57.7]} 8. Ne5 {[%clk 0:03:03]}
8... Ng4 {[%clk 0:02:57.7]} 9. f4 {[%clk 0:02:18.1]} 9... Nxe5 {[%clk 0:02:39]}
10. fxe5 {[%clk 0:02:14.5]} 10... c5 {[%clk 0:02:39.3]} 11. e3 {[%clk
0:02:09.6]} 11... Nc6 {[%clk 0:02:39.4]} 12. Bxc6 {[%clk 0:01:55.7]} 12... bxc6
{[%clk 0:02:39.4]} 13. b3 {[%clk 0:01:31.2]} 13... cxd4 {[%clk 0:02:33.9]} 14.
exd4 {[%clk 0:01:29.6]} 14... c5 {[%clk 0:02:34.3]} 15. Be3 {[%clk 0:01:24.4]}
15... cxd4 {[%clk 0:02:27]} 16. Bxd4 {[%clk 0:01:15.9]} 16... Qa5 {[%clk
0:02:18.5]} 17. Qe2 {[%clk 0:01:10.8]} 17... Rd8 {[%clk 0:02:10]} 18. Qe3 {[%clk
0:01:10.9]} 18... Bh3 {[%clk 0:01:47.6]} 19. Rfd1 {[%clk 0:01:03.7]} 19... Qb4
{[%clk 0:01:08.9]} 20. Rd2 {[%clk 0:00:45.3]} 20... cxb3 {[%clk 0:01:04.9]} 21.
axb3 {[%clk 0:00:33.6]} 21... Qxb3 {[%clk 0:00:58.4]} 22. Rxa7 {[%clk
0:00:20.2]} 22... Rxa7 {[%clk 0:00:55.2]} 23. Bxa7 {[%clk 0:00:21.1]} 23... Ra8
{[%clk 0:00:50.6]} 24. Ra2 {[%clk 0:00:16.8]} 24... Qb7 {[%clk 0:00:44.3]} 25.
Nd1 {[%clk 0:00:09.1]} 25... Bxe5 {[%clk 0:00:28.7]} 26. Qxe5 {[%clk 0:00:07.5]}
26... Rxa7 {[%clk 0:00:29.2]} 27. Rb2 {[%clk 0:00:07.3]} 27... Qc7 {[%clk
0:00:16.8]} 28. Rb8+ {[%clk 0:00:06.3]} 28... Bc8 {[%clk 0:00:17.5]} 29. Qxc7
{[%clk 0:00:01.1]} 29... Rxc7 {[%clk 0:00:18.4]} 30. Ne3 {[%clk 0:00:01.3]}
30... Kg7 {[%clk 0:00:17.3]} 31. Nd5 {[%clk 0:00:01.4]} 31... Rc1+ {[%clk
0:00:17.1]} 32. Kf2 {[%clk 0:00:01.5]} 32... Rc2+ {[%clk 0:00:17.5]} 33. Ke3
{[%clk 0:00:01.3]} 33... Be6 {[%clk 0:00:18.1]} 34. Nxe7 {[%clk 0:00:01]} 34...
Rxh2 {[%clk 0:00:18.2]} 35. Rg8+ {[%clk 0:00:01.3]} 35... Kf6 {[%clk 0:00:18.5]}
36. Nc6 {[%clk 0:00:01.9]} 36... Rg2 {[%clk 0:00:16.6]} 37. Nd4 {[%clk 0:00:01]}
37... Rxg3+ {[%clk 0:00:16.3]} 38. Kf4 {[%clk 0:00:01.5]} 38... Rd3 {[%clk
0:00:11]} 0-1

[Event "Early-Titled-Tuesday-Blitz-June-18-2024"]
[Site "Chess.com"]
[Date "2024.06.18"]
[Round "7"]
[White "Barboval"]
[Black "ningyzhou"]
[Result "1-0"]
[WhiteElo "2539"]
[BlackElo "2156"]
[TimeControl "180+1"]
[EndTime "9:20:17 PDT"]
[Termination "Barboval won by resignation"]

1. d4 {[%clk 0:03:00.9]} 1... d5 {[%clk 0:02:58.8]} 2. Bf4 {[%clk 0:02:59.3]}
2... Nf6 {[%clk 0:02:56.8]} 3. e3 {[%clk 0:02:58]} 3... Bf5 {[%clk 0:02:53.5]}
4. Nf3 {[%clk 0:02:55.4]} 4... e6 {[%clk 0:02:50.9]} 5. Nh4 {[%clk 0:02:55.5]}
5... Bg6 {[%clk 0:02:46.9]} 6. Nxg6 {[%clk 0:02:55.3]} 6... hxg6 {[%clk
0:02:47.4]} 7. h3 {[%clk 0:02:48]} 7... Bd6 {[%clk 0:02:47.2]} 8. Bxd6 {[%clk
0:02:20.7]} 8... Qxd6 {[%clk 0:02:47.4]} 9. c3 {[%clk 0:02:20.2]} 9... Nbd7
{[%clk 0:02:46.5]} 10. Nd2 {[%clk 0:02:20.6]} 10... c6 {[%clk 0:02:44.7]} 11.
Qb3 {[%clk 0:02:20.1]} 11... b6 {[%clk 0:02:42.2]} 12. Be2 {[%clk 0:02:10.6]}
12... e5 {[%clk 0:02:36.3]} 13. O-O-O {[%clk 0:01:53.9]} 13... O-O {[%clk
0:02:28.4]} 14. h4 {[%clk 0:01:45.1]} 14... c5 {[%clk 0:02:21.4]} 15. h5 {[%clk
0:01:36.8]} 15... gxh5 {[%clk 0:02:09.9]} 16. Bxh5 {[%clk 0:01:34.7]} 16... cxd4
{[%clk 0:02:10]} 17. cxd4 {[%clk 0:01:33]} 17... Rac8+ {[%clk 0:02:10.5]} 18.
Kb1 {[%clk 0:01:26.2]} 18... Nxh5 {[%clk 0:02:10.3]} 19. dxe5 {[%clk 0:01:09.6]}
19... Qg6+ {[%clk 0:02:04.8]} 20. Ka1 {[%clk 0:01:08.9]} 20... Nc5 {[%clk
0:02:01.8]} 21. Qxd5 {[%clk 0:01:07.3]} 21... Rfd8 {[%clk 0:02:00.6]} 22. Qf3
{[%clk 0:01:07.4]} 22... Ne6 {[%clk 0:01:26.5]} 23. Qxh5 {[%clk 0:00:26.4]}
23... Qxh5 {[%clk 0:01:23.9]} 24. Rxh5 {[%clk 0:00:27.3]} 24... Rxd2 {[%clk
0:01:23.5]} 25. Rdh1 {[%clk 0:00:27.9]} 25... Kf8 {[%clk 0:00:59.6]} 26. Rh8+
{[%clk 0:00:26.8]} 26... Ke7 {[%clk 0:01:00]} 27. Rxc8 {[%clk 0:00:27.7]} 27...
Rxf2 {[%clk 0:00:59.9]} 28. Ra8 {[%clk 0:00:19.1]} 28... Nc5 {[%clk 0:00:49.5]}
29. Rxa7+ {[%clk 0:00:19.2]} 29... Ke6 {[%clk 0:00:50.1]} 30. b4 {[%clk
0:00:18]} 30... Nd3 {[%clk 0:00:47.7]} 31. Rb7 {[%clk 0:00:16.2]} 31... Rxg2
{[%clk 0:00:45.8]} 32. Rxb6+ {[%clk 0:00:16.4]} 32... Kxe5 {[%clk 0:00:46.3]}
33. a4 {[%clk 0:00:16.3]} 33... g5 {[%clk 0:00:43.2]} 34. a5 {[%clk 0:00:16.7]}
34... g4 {[%clk 0:00:35.9]} 35. a6 {[%clk 0:00:17.1]} 35... g3 {[%clk
0:00:06.1]} 36. a7 {[%clk 0:00:17.1]} 36... Rh2 {[%clk 0:00:06.1]} 37. Rxh2
{[%clk 0:00:14.8]} 37... gxh2 {[%clk 0:00:05.1]} 38. a8=Q {[%clk 0:00:15.1]} 1-0

[Event "Early-Titled-Tuesday-Blitz-June-18-2024"]
[Site "Chess.com"]
[Date "2024.06.18"]
[Round "7"]
[White "Bigfish1995"]
[Black "vladislavkovalev"]
[Result "0-1"]
[WhiteElo "3106"]
[BlackElo "2861"]
[TimeControl "180+1"]
[EndTime "9:20:19 PDT"]
[Termination "vladislavkovalev won by resignation"]

1. Nf3 {[%clk 0:02:56.1]} 1... Nf6 {[%clk 0:03:00.3]} 2. b3 {[%clk 0:02:56]}
2... d5 {[%clk 0:02:59]} 3. Bb2 {[%clk 0:02:56.2]} 3... e6 {[%clk 0:02:59.6]} 4.
e3 {[%clk 0:02:56.4]} 4... b6 {[%clk 0:02:59.5]} 5. Bb5+ {[%clk 0:02:52.6]} 5...
c6 {[%clk 0:02:59.1]} 6. Be2 {[%clk 0:02:52.3]} 6... Bb7 {[%clk 0:02:59.6]} 7.
d4 {[%clk 0:02:47.2]} 7... Nbd7 {[%clk 0:02:58.7]} 8. O-O {[%clk 0:02:45.5]}
8... Be7 {[%clk 0:02:59]} 9. Nbd2 {[%clk 0:02:38.4]} 9... O-O {[%clk 0:02:58.9]}
10. a3 {[%clk 0:02:28.8]} 10... c5 {[%clk 0:02:58]} 11. dxc5 {[%clk 0:02:27.9]}
11... Nxc5 {[%clk 0:02:57.9]} 12. b4 {[%clk 0:02:22.9]} 12... Na4 {[%clk
0:02:19.5]} 13. Bd4 {[%clk 0:02:22.5]} 13... Ne4 {[%clk 0:02:20.1]} 14. Nxe4
{[%clk 0:02:15.8]} 14... dxe4 {[%clk 0:02:21]} 15. Ne5 {[%clk 0:01:19.7]} 15...
f6 {[%clk 0:02:16]} 16. Nc4 {[%clk 0:01:10.1]} 16... e5 {[%clk 0:02:06.4]} 17.
Bb2 {[%clk 0:00:52.4]} 17... Ba6 {[%clk 0:01:40.5]} 18. Qb1 {[%clk 0:00:35.1]}
18... Qc8 {[%clk 0:01:21.4]} 19. b5 {[%clk 0:00:20.9]} 19... Bb7 {[%clk
0:00:56.5]} 20. Rd1 {[%clk 0:00:21]} 20... Qe6 {[%clk 0:00:50.2]} 21. Nd2 {[%clk
0:00:19.6]} 21... Rac8 {[%clk 0:00:49.9]} 22. c4 {[%clk 0:00:15.6]} 22... Rfd8
{[%clk 0:00:46.5]} 23. Qc2 {[%clk 0:00:15.1]} 23... Nc5 {[%clk 0:00:47.1]} 24.
a4 {[%clk 0:00:15]} 24... Nd3 {[%clk 0:00:37.5]} 25. a5 {[%clk 0:00:15.1]} 25...
Qf5 {[%clk 0:00:16.5]} 26. Rf1 {[%clk 0:00:14.6]} 26... Bc5 {[%clk 0:00:10]} 27.
Ba3 {[%clk 0:00:14.6]} 27... h5 {[%clk 0:00:05.6]} 28. Bxc5 {[%clk 0:00:14.7]}
28... bxc5 {[%clk 0:00:06.3]} 29. f3 {[%clk 0:00:11.9]} 29... Qg5 {[%clk
0:00:05.9]} 30. f4 {[%clk 0:00:09.4]} 30... exf4 {[%clk 0:00:06.1]} 31. exf4
{[%clk 0:00:04.6]} 31... Nxf4 {[%clk 0:00:07]} 32. Rxf4 {[%clk 0:00:02]} 32...
Qxf4 {[%clk 0:00:07.9]} 33. Nf1 {[%clk 0:00:02.5]} 33... e3 {[%clk 0:00:06.4]}
34. Bxh5 {[%clk 0:00:01]} 34... Rd2 {[%clk 0:00:06.7]} 35. Qg6 {[%clk 0:00:01]}
35... Qf2+ {[%clk 0:00:06.5]} 0-1

[Event "Early-Titled-Tuesday-Blitz-June-18-2024"]
[Site "Chess.com"]
[Date "2024.06.18"]
[Round "7"]
[White "sirinbaba33"]
[Black "AniJak"]
[Result "1-0"]
[WhiteElo "2288"]
[BlackElo "2339"]
[TimeControl "180+1"]
[EndTime "9:20:19 PDT"]
[Termination "sirinbaba33 won by resignation"]

1. e4 {[%clk 0:02:53.9]} 1... Nf6 {[%clk 0:02:59.5]} 2. e5 {[%clk 0:02:53.6]}
2... Nd5 {[%clk 0:02:59.6]} 3. d4 {[%clk 0:02:54.3]} 3... d6 {[%clk 0:03:00]} 4.
Nf3 {[%clk 0:02:54.9]} 4... dxe5 {[%clk 0:03:00]} 5. Nxe5 {[%clk 0:02:55.8]}
5... c6 {[%clk 0:03:00.2]} 6. Be2 {[%clk 0:02:55.5]} 6... Bf5 {[%clk 0:03:00]}
7. O-O {[%clk 0:02:54.8]} 7... Nd7 {[%clk 0:02:59.9]} 8. Nf3 {[%clk 0:02:54.5]}
8... e6 {[%clk 0:02:58.8]} 9. c4 {[%clk 0:02:54.7]} 9... N5b6 {[%clk 0:02:58.8]}
10. Nc3 {[%clk 0:02:54.3]} 10... Be7 {[%clk 0:02:58.2]} 11. Bf4 {[%clk 0:02:54]}
11... O-O {[%clk 0:02:57.8]} 12. h3 {[%clk 0:02:51.6]} 12... Bf6 {[%clk
0:02:57.6]} 13. Rc1 {[%clk 0:02:45.1]} 13... Re8 {[%clk 0:02:57.9]} 14. c5
{[%clk 0:02:40]} 14... Nd5 {[%clk 0:02:56.3]} 15. Bd6 {[%clk 0:02:40.1]} 15...
Nxc3 {[%clk 0:02:53.9]} 16. bxc3 {[%clk 0:02:39.7]} 16... e5 {[%clk 0:02:54]}
17. Bc4 {[%clk 0:02:38]} 17... e4 {[%clk 0:02:40.9]} 18. Nh2 {[%clk 0:02:33.5]}
18... Bg5 {[%clk 0:02:38.5]} 19. f4 {[%clk 0:02:08.1]} 19... exf3 {[%clk
0:02:37.7]} 20. Qxf3 {[%clk 0:02:07.7]} 20... Bxc1 {[%clk 0:02:31.5]} 21. Qxf5
{[%clk 0:02:07.6]} 21... Be3+ {[%clk 0:02:30]} 22. Kh1 {[%clk 0:02:07]} 22...
Nf6 {[%clk 0:02:29.3]} 23. Ng4 {[%clk 0:02:06.1]} 23... Nxg4 {[%clk 0:02:14.2]}
24. Bxf7+ {[%clk 0:01:46.6]} 24... Kh8 {[%clk 0:02:13.6]} 25. Qxg4 {[%clk
0:01:47.5]} 25... Qc8 {[%clk 0:01:53.8]} 26. Bxe8 {[%clk 0:01:32.5]} 26... Qxe8
{[%clk 0:01:54.7]} 27. Be5 {[%clk 0:01:32.6]} 27... Bh6 {[%clk 0:01:53.1]} 28.
Rf6 {[%clk 0:01:29.9]} 28... Bd2 {[%clk 0:01:02.6]} 29. Rd6 {[%clk 0:01:22.2]}
29... Qf8 {[%clk 0:01:02]} 30. Rd7 {[%clk 0:01:14.1]} 30... Bh6 {[%clk
0:01:00.5]} 31. Kh2 {[%clk 0:01:08.8]} 31... Re8 {[%clk 0:01:00.9]} 32. Qh4
{[%clk 0:01:02.7]} 32... Kg8 {[%clk 0:00:43.5]} 33. Rxb7 {[%clk 0:00:58.8]}
33... Rxe5 {[%clk 0:00:18.7]} 34. dxe5 {[%clk 0:00:57]} 34... Bf4+ {[%clk
0:00:19.4]} 35. Kh1 {[%clk 0:00:57.1]} 35... Bxe5 {[%clk 0:00:19.4]} 36. Qc4+
{[%clk 0:00:52.2]} 36... Kh8 {[%clk 0:00:19.2]} 37. Rf7 {[%clk 0:00:52.2]} 37...
Qd8 {[%clk 0:00:17.6]} 38. Qf1 {[%clk 0:00:47.8]} 38... Bf6 {[%clk 0:00:16.4]}
39. Rxa7 {[%clk 0:00:43.7]} 39... h6 {[%clk 0:00:16.4]} 40. Rf7 {[%clk
0:00:36.3]} 40... Kh7 {[%clk 0:00:15.8]} 41. Qxf6 {[%clk 0:00:33.4]} 41... Qxf6
{[%clk 0:00:13.4]} 42. Rxf6 {[%clk 0:00:33.7]} 42... gxf6 {[%clk 0:00:14]} 43.
Kh2 {[%clk 0:00:33.6]} 43... Kg6 {[%clk 0:00:12.9]} 44. Kg3 {[%clk 0:00:34]}
44... Kf5 {[%clk 0:00:13.5]} 45. Kf3 {[%clk 0:00:33]} 45... Ke5 {[%clk
0:00:14.4]} 46. Kg4 {[%clk 0:00:32.7]} 46... Kd5 {[%clk 0:00:14.8]} 47. Kf5
{[%clk 0:00:25.9]} 47... Kxc5 {[%clk 0:00:15.7]} 48. Kxf6 {[%clk 0:00:25]} 48...
Kc4 {[%clk 0:00:16.1]} 49. Ke6 {[%clk 0:00:25.5]} 49... c5 {[%clk 0:00:14.3]}
50. Kd6 {[%clk 0:00:25.5]} 1-0

[Event "Early-Titled-Tuesday-Blitz-June-18-2024"]
[Site "Chess.com"]
[Date "2024.06.18"]
[Round "7"]
[White "FXDon77"]
[Black "cthulhuuu"]
[Result "1-0"]
[WhiteElo "2867"]
[BlackElo "2375"]
[TimeControl "180+1"]
[EndTime "9:20:22 PDT"]
[Termination "FXDon77 won on time"]

1. e4 {[%clk 0:02:59.4]} 1... d6 {[%clk 0:02:59.8]} 2. d4 {[%clk 0:02:59.4]}
2... Nf6 {[%clk 0:03:00.3]} 3. Nc3 {[%clk 0:02:59.6]} 3... c6 {[%clk 0:03:00.8]}
4. f4 {[%clk 0:02:59.8]} 4... Qb6 {[%clk 0:03:00.9]} 5. Nf3 {[%clk 0:02:59.3]}
5... Bg4 {[%clk 0:03:00.8]} 6. e5 {[%clk 0:02:59]} 6... Nd5 {[%clk 0:03:01]} 7.
Nxd5 {[%clk 0:02:59]} 7... cxd5 {[%clk 0:03:01.9]} 8. c3 {[%clk 0:02:56.7]} 8...
Nc6 {[%clk 0:03:02.2]} 9. h3 {[%clk 0:02:56.4]} 9... Bxf3 {[%clk 0:03:02.3]} 10.
Qxf3 {[%clk 0:02:57.3]} 10... e6 {[%clk 0:03:03.2]} 11. Bd3 {[%clk 0:02:57]}
11... Be7 {[%clk 0:03:00]} 12. exd6 {[%clk 0:02:49.9]} 12... Bxd6 {[%clk
0:03:00]} 13. O-O {[%clk 0:02:50.7]} 13... g6 {[%clk 0:02:59.8]} 14. Kh1 {[%clk
0:02:50.5]} 14... O-O-O {[%clk 0:02:50.4]} 15. Qf2 {[%clk 0:02:47.3]} 15... h5
{[%clk 0:02:47.7]} 16. Be3 {[%clk 0:02:47.6]} 16... Qc7 {[%clk 0:02:46.3]} 17.
b4 {[%clk 0:02:47.2]} 17... Rdg8 {[%clk 0:02:36.8]} 18. a4 {[%clk 0:02:46.2]}
18... f6 {[%clk 0:02:25.1]} 19. a5 {[%clk 0:02:45.5]} 19... g5 {[%clk
0:02:23.1]} 20. a6 {[%clk 0:02:40.2]} 20... b6 {[%clk 0:02:10.5]} 21. f5 {[%clk
0:02:40.2]} 21... e5 {[%clk 0:02:01.5]} 22. b5 {[%clk 0:02:40.3]} 22... e4
{[%clk 0:01:40.4]} 23. bxc6 {[%clk 0:01:59.4]} 23... exd3 {[%clk 0:01:40.1]} 24.
Qd2 {[%clk 0:01:48.9]} 24... g4 {[%clk 0:01:35.1]} 25. h4 {[%clk 0:01:44.5]}
25... g3 {[%clk 0:01:35.2]} 26. Qxd3 {[%clk 0:01:36.4]} 26... Rg4 {[%clk
0:01:30.8]} 27. c4 {[%clk 0:01:36.6]} 27... Qxc6 {[%clk 0:01:20.9]} 28. Rac1
{[%clk 0:01:25.2]} 28... Kb8 {[%clk 0:01:01.6]} 29. c5 {[%clk 0:01:18.2]} 29...
bxc5 {[%clk 0:00:26.5]} 30. dxc5 {[%clk 0:01:15.6]} 30... Be5 {[%clk 0:00:23.6]}
31. Rb1+ {[%clk 0:01:09.3]} 31... Ka8 {[%clk 0:00:23.9]} 32. Rb7 {[%clk
0:01:09.8]} 32... Rb8 {[%clk 0:00:16.2]} 33. Rfb1 {[%clk 0:01:07.5]} 33... Rxb7
{[%clk 0:00:16.4]} 34. Rxb7 {[%clk 0:00:56.5]} 34... d4 {[%clk 0:00:15.1]} 35.
Kg1 {[%clk 0:00:42.9]} 35... Rxh4 {[%clk 0:00:08.8]} 36. Qc4 {[%clk 0:00:24.7]}
36... Bb8 {[%clk 0:00:02.2]} 37. Qg8 {[%clk 0:00:18.8]} 1-0

[Event "Early-Titled-Tuesday-Blitz-June-18-2024"]
[Site "Chess.com"]
[Date "2024.06.18"]
[Round "7"]
[White "Roedor"]
[Black "Bilan_Danila"]
[Result "0-1"]
[WhiteElo "2421"]
[BlackElo "2575"]
[TimeControl "180+1"]
[EndTime "9:20:22 PDT"]
[Termination "Bilan_Danila won on time"]

1. d4 {[%clk 0:02:53.6]} 1... d5 {[%clk 0:02:59.5]} 2. c4 {[%clk 0:02:50.4]}
2... c6 {[%clk 0:02:59.6]} 3. Nf3 {[%clk 0:02:50.2]} 3... Nf6 {[%clk 0:02:59.7]}
4. Qb3 {[%clk 0:02:50.1]} 4... e6 {[%clk 0:02:59.6]} 5. Bg5 {[%clk 0:02:49.9]}
5... Nbd7 {[%clk 0:02:59.2]} 6. e3 {[%clk 0:02:50]} 6... Be7 {[%clk 0:02:58.6]}
7. Nc3 {[%clk 0:02:50.1]} 7... O-O {[%clk 0:02:55.8]} 8. Bd3 {[%clk 0:02:50.2]}
8... dxc4 {[%clk 0:02:55.3]} 9. Bxc4 {[%clk 0:02:50.2]} 9... b6 {[%clk
0:02:50.7]} 10. O-O {[%clk 0:02:49.2]} 10... Bb7 {[%clk 0:02:50.4]} 11. Rfd1
{[%clk 0:02:49.4]} 11... Nd5 {[%clk 0:02:40]} 12. Bxe7 {[%clk 0:02:47]} 12...
Qxe7 {[%clk 0:02:40.8]} 13. Nxd5 {[%clk 0:02:43.2]} 13... exd5 {[%clk
0:02:37.4]} 14. Bd3 {[%clk 0:02:42.3]} 14... Rac8 {[%clk 0:02:29]} 15. Bf5
{[%clk 0:02:40.6]} 15... g6 {[%clk 0:02:21.8]} 16. Bxd7 {[%clk 0:02:40.6]} 16...
Qxd7 {[%clk 0:02:22.7]} 17. Rac1 {[%clk 0:02:39.6]} 17... f6 {[%clk 0:02:18.6]}
18. Ne1 {[%clk 0:02:25.2]} 18... Kg7 {[%clk 0:02:15.5]} 19. Nd3 {[%clk
0:02:24.9]} 19... Rfe8 {[%clk 0:02:09.2]} 20. Qa3 {[%clk 0:02:20]} 20... a5
{[%clk 0:02:02.4]} 21. b4 {[%clk 0:02:19.2]} 21... Ra8 {[%clk 0:01:54.3]} 22.
bxa5 {[%clk 0:02:17.5]} 22... Rxa5 {[%clk 0:01:55.2]} 23. Qb3 {[%clk 0:02:16.1]}
23... Rb5 {[%clk 0:01:47.8]} 24. Qc3 {[%clk 0:02:02.3]} 24... Ra8 {[%clk
0:01:46.4]} 25. Ra1 {[%clk 0:01:46.7]} 25... Ra4 {[%clk 0:01:36.8]} 26. h3
{[%clk 0:01:41.5]} 26... Qd6 {[%clk 0:01:30.5]} 27. g3 {[%clk 0:01:13.4]} 27...
h5 {[%clk 0:01:28]} 28. h4 {[%clk 0:01:12.9]} 28... Rc4 {[%clk 0:01:26.4]} 29.
Qd2 {[%clk 0:01:10.5]} 29... Bc8 {[%clk 0:01:26.8]} 30. a4 {[%clk 0:01:08.4]}
30... Rb3 {[%clk 0:01:20.3]} 31. Rdb1 {[%clk 0:01:07.9]} 31... Rxb1+ {[%clk
0:00:52.3]} 32. Rxb1 {[%clk 0:01:08.8]} 32... Bf5 {[%clk 0:00:52.2]} 33. Rxb6
{[%clk 0:01:03.3]} 33... Be4 {[%clk 0:00:51.1]} 34. Nc5 {[%clk 0:00:48.5]} 34...
Rxc5 {[%clk 0:00:20.6]} 35. dxc5 {[%clk 0:00:45.3]} 35... Qxc5 {[%clk
0:00:21.5]} 36. Rb7+ {[%clk 0:00:42.9]} 36... Kh6 {[%clk 0:00:21.3]} 37. a5
{[%clk 0:00:30.7]} 37... Qa3 {[%clk 0:00:16.3]} 38. Qe1 {[%clk 0:00:08.3]} 38...
c5 {[%clk 0:00:16.7]} 39. Rc7 {[%clk 0:00:03.6]} 39... c4 {[%clk 0:00:16.1]} 40.
Kh2 {[%clk 0:00:02.3]} 40... Qa2 {[%clk 0:00:14.7]} 41. Qc1 {[%clk 0:00:01.5]}
41... Qxf2+ {[%clk 0:00:14.5]} 0-1